Cogmind - Beta 17 @@@ ROGUE MODE // 2026.07.17 @ 20:49:55 Player: oskarw Result: Destroyed by G-47 Trooper with Particle Gun Performance ------------- Evolutions (1) 500 Regions Visited (2) 400 Robots Destroyed (29) 145 Value Destroyed (663) 663 Prototype IDs (3) 60 Alien Tech Used (0) 0 Bonus (0) 0 TOTAL SCORE: 1768 Bonus ------- None Cogmind --------- Core Integrity 0/400 Matter 281/300 Energy 90/100 System Corruption 12% Temperature Cool (18) Movement Walking (105) Location -9/Materials Parts ------- > --- POWER (1) -------- (None) > --- PROPULSION (4) --- Aluminum Leg > --- UTILITY (2) ------ Heat Sink Heat Sink > --- WEAPON (2) ------- Light Assault Rifle > --- INVENTORY (5) ---- Light Ion Engine Medium Laser Small Laser Peak State ------------ > --- POWER ------------ Light Ion Engine > --- PROPULSION ------- Aluminum Leg Aluminum Leg > --- UTILITY ---------- Heat Sink Improved Heat Sink > --- WEAPON ----------- Medium Laser Assault Rifle > --- INVENTORY -------- Ion Engine Wheel Wheel Medium Laser [Rating: 9] Favorites ----------- Power Light Ion Engine Engine Light Ion Engine Propulsion Aluminum Leg Leg Aluminum Leg Utility Propulsion Shielding Device Heat Sink Storage Huge Storage Unit Protection Propulsion Shielding Weapon Medium Laser Energy Gun Medium Laser Ballistic Gun Light Assault Rifle Launcher Grenade Launcher Build | -11 -10 -9 ------- Run | Yrd Mat Mat Slots Evolved 2 | . . 2 Power . | . . . Propulsion 2 | . . 2 Utility . | . . . Weapon . | . . . Parts Attached 24 | 7 9 8 Power 6 | 2 1 3 Engine 6 | 2 1 3 Core . | . . . Reactor . | . . . Propulsion 6 | 2 2 2 Treads . | . . . Leg 6 | 2 2 2 Wheel . | . . . Hover . | . . . Flight . | . . . Utility 7 | 1 4 2 Device 4 | 1 1 2 Storage 1 | . 1 . Processor . | . . . Hackware . | . . . Protection 2 | . 2 . Artifact . | . . . Weapon 5 | 2 2 1 Energy Gun 2 | 1 . 1 Energy Cannon . | . . . Ballistic Gun 2 | 1 1 . Ballistic Cannon . | . . . Launcher 1 | . 1 . Special Weapon . | . . . Impact Weapon . | . . . Slashing Weapon . | . . . Piercing Weapon . | . . . Special Melee Weapon . | . . . Unidentified Prototypes . | . . . Parts Lost 13 | . 1 12 Power 4 | . 1 3 Propulsion 4 | . . 4 Utility 2 | . . 2 Weapon 3 | . . 3 Highest Loss Streak 4 | . 1 4 To Critical Strikes . | . . . Average Backups 3 | 3 4 2 Power . | . . . Propulsion . | 1 1 . Utility . | . . . Weapon 1 | . 2 2 Tool/Special . | . . . Unused Backups 4 | . 2 2 Power . | . . . Propulsion 2 | . 2 . Utility 1 | . . 1 Weapon 1 | . . 1 Tool/Special . | . . . Average Slot Usage (%) 88 | . 97 71 Engine 11 | . 13 8 Leg 26 | . 28 24 Device 5 | . 4 7 Protection 16 | . 21 8 Energy Gun 11 | . 14 7 Ballistic Gun 13 | . 13 13 Peak Build Rating 9 | 6 9 9 Average Rating 6 | 3 7 6 On Entrance 4 | . 6 7 Avg Prop Armor Cover (%) . | . . . Naked Turns . | . . . Heaviest Build 12 | 9 12 8 Greatest Support 40 | 20 20 40 Greatest Overweight (x) 1 | . . 1 Average Overweight (x) . | . . . Largest Inventory Capacity 25 | 5 25 5 Average Capacity 5 | 5 5 5 Most Carried 5 | 4 5 4 Average Carried 3 | 3 4 2 Final Capacity 5 | 5 5 5 Final Carried 5 | 4 5 3 Class Distribution -------------------- 86% | Mutant 13% | Scavenger-Mutant Dominant Class ---------------- Mutant | -10/Materials Mutant | -9/Materials Resources | -11 -10 -9 ----------- Run | Yrd Mat Mat Matter Collected 786 | 274 238 274 Remotely . | . . . Salvage Created 791 | 47 403 341 Parts 50 | 2 20 28 Haulers Intercepted 1 | . 1 . Recyclers Shooed 1 | . 1 . Parts Field Recycled . | . . . Retrieved Matter . | . . . Parts Self-Destructed . | . . . Prevented . | . . . Parts Restored . | . . . Kills | -11 -10 -9 ------- Run | Yrd Mat Mat Combat Hostiles Destroyed 22 | 1 9 12 Guns 13 | 1 8 4 AOE 8 | . 1 7 Classes Destroyed 7 | 1 4 2 Worker 2 | . 1 1 Builder 2 | . . 2 Hauler 1 | . 1 . Watcher 2 | . 2 . Swarmer 7 | . 3 4 Grunt 14 | 1 6 7 Sentry 1 | . . 1 Best Kill Streak 8 | 1 8 6 Combat Bots Only 4 | 1 4 4 Max Kills in Single Turn 3 | 1 3 3 Gunslinging . | . . . Exploded 2 | . 1 2 Melee . | . . . Uniques/NPCs Destroyed . | . . . Combat | -11 -10 -9 -------- Run | Yrd Mat Mat Hostile Shots Fired 183 | 11 59 113 Missed 59 | 2 23 34 Hits 124 | 9 36 79 Projectile 124 | 9 36 79 Critical Strikes 2 | . . 2 Damage Taken 1867 | 102 412 1353 Core 575 | 35 125 415 Absorbed by Shields . | . . . Redirected to Shielding 63 | . 29 34 Core Remaining (%) 61 | 86 36 . Volleys Fired 89 | 8 40 41 Largest 2 | 2 2 2 Hottest 80 | 70 80 80 Shots Fired 176 | 16 80 80 Gun 167 | 16 79 72 Cannon . | . . . Launcher 9 | . 1 8 Special . | . . . Kinetic 99 | 8 39 52 Thermal 68 | 8 40 20 Explosive 9 | . 1 8 Electromagnetic . | . . . Robot Hit Streak 10 | 8 6 10 Robot Miss Streak 7 | 2 7 3 Penetration Max . | . . . Secondary Targets . | . . . Shots Hit Robots 107 | 11 38 58 Core Hits 49 | 2 20 27 Critical Kills 1 | . 1 . Critical Parts Destroyed 1 | . . 1 Critical Strikes 8 | . 3 5 Burn 6 | . 2 4 Destroy 2 | . 1 1 Melee Attacks . | . . . Impact . | . . . Slashing . | . . . Piercing . | . . . Sneak Attacks . | . . . Combat Hostiles . | . . . Follow-up Attacks . | . . . Damage Inflicted 1922 | 130 565 1227 Guns 1215 | 130 480 605 Cannons . | . . . Explosions 707 | . 85 622 Melee . | . . . Ramming . | . . . Kinetic 740 | 69 255 416 Thermal 475 | 61 225 189 Explosive 707 | . 85 622 Electromagnetic . | . . . Impact . | . . . Slashing . | . . . Piercing . | . . . Highest Corruption 12 | . . 12 Average Corruption 12 | . . 12 Corruption Purged . | . . . Corruption Blocked . | . . . Effects 10 | . . 10 Message Errors 3 | . . 3 Matter Fused 4 | . . 4 Energy Discharges 1 | . . 1 Data Loss (major) 1 | . . 1 Weapon Failures 1 | . . 1 Overload Shots . | . . . Overflow Damage 38 | . . 38 Projectiles . | . . . Explosions 38 | . . 38 Melee . | . . . Knockbacks . | . . . Impact . | . . . Kinetic . | . . . Secondary . | . . . Self-Inflicted Damage 157 | . . 157 Shots 6 | . . 6 Rammed . | . . . Targets Rammed . | . . . Kicked . | . . . Crushed . | . . . Highest Temperature 92 | 14 76 92 Average Temperature 28 | 8 29 31 Received Heat Transfer 675 | 54 195 426 Siege Activations . | . . . Martial Activations . | . . . Shielding Activations . | . . . Robots Disrupted . | . . . Combat Hostiles . | . . . Robots Corrupted . | . . . Combat Hostiles . | . . . Parts Fried . | . . . Impact Corruptions . | . . . Robots Melted 1 | . . 1 Combat Hostiles 1 | . . 1 Parts Melted 4 | . 2 2 Heat Transferred 1850 | 185 814 851 Parts Sabotaged . | . . . Parts Stolen . | . . . Parts Stripped . | . . . Power Chain Reactions . | . . . Alert | -11 -10 -9 ------- Run | Yrd Mat Mat Maximum Alert Level . | . . . Low Security (%) 100 | 100 100 100 Level 1 . | . . . Level 2 . | . . . Level 3 . | . . . Level 4 . | . . . Level 5 . | . . . High Security . | . . . Max Security . | . . . Peak Influence 112 | 20 104 112 Initial 1 | . . 1 Average 36 | 1 28 63 Influence Increases 663 | 20 266 377 Destroy 0b10 Robot/C 440 | 20 180 240 Destroy 0b10 Robot/NC 35 | . 20 15 Destroy Leader 66 | . 46 20 Successful Hack 14 | . 12 2 Destroy Structure 63 | . 8 55 Lose Combat Pursuer 45 | . . 45 Influence Decreases 556 | 20 260 276 Entered New Map 5 | . . 5 Time Decay 421 | 20 250 151 Lost Part 130 | . 10 120 Squads Dispatched 2 | . 1 1 Investigation 1 | . 1 . Extermination . | . . . Reinforcement 1 | . . 1 Assault . | . . . Garrison . | . . . Intercept . | . . . Searches Triggered . | . . . Construction Impeded . | . . . Haulers Reinforced . | . . . Active Scanning Responses . | . . . Cargo Convoy Interrupts . | . . . Stealth | -11 -10 -9 --------- Run | Yrd Mat Mat Distress Signals 2 | . . 2 Communications Jammed . | . . . Distress Signals . | . . . Times Spotted 46 | 1 14 31 Peak Tracking Total 10 | 1 4 10 Tactical Retreats 2 | . . 2 Traps | -11 -10 -9 ------- Run | Yrd Mat Mat Traps Triggered 1 | . 1 . Indirectly . | . . . Trap Hack Attempts . | . . . Triggered . | . . . Disarmed . | . . . Reprogrammed . | . . . Reused . | . . . Traps Extracted . | . . . Installed . | . . . Triggered . | . . . Machines | -11 -10 -9 ---------- Run | Yrd Mat Mat Machines Disabled . | . . . Max in Single Turn . | . . . Machines Repaired . | . . . Machines Dismantled . | . . . Machines Sabotaged . | . . . Overloaded Fab Kills . | . . . Hacking | -11 -10 -9 --------- Run | Yrd Mat Mat Machines Accessed 7 | . 4 3 Terminals 5 | . 4 1 Fabricators . | . . . Repair Stations . | . . . Recycling Units 1 | . . 1 Scanalyzers 1 | . . 1 Garrison Access . | . . . Total Hacks 27 | . 14 13 Successful 20 | . 11 9 Failed 7 | . 3 4 Catastrophic 1 | . 1 . Database Lockouts . | . . . Manual . | . . . Terminals 17 | . 14 3 Fabricators . | . . . Repair Stations . | . . . Recycling Units 4 | . . 4 Scanalyzers 6 | . . 6 Garrison Access . | . . . Terminal Hacks 14 | . 11 3 Record 8 | . 5 3 Prototype ID Bank 2 | . 2 . Terminal Index 1 | . 1 . Alert Level 2 | . 2 . Dispatch Records 1 | . 1 . Fabricator Hacks . | . . . Repair Station Hacks . | . . . Recycling Unit Hacks 2 | . . 2 Recycle Component 1 | . . 1 Process 1 | . . 1 Scanalyzer 4 | . . 4 Insert Component 1 | . . 1 Analyze 1 | . . 1 Retrieve Study 2 | . . 2 Garrison Access Hacks . | . . . Unauthorized Hacks . | . . . Terminals . | . . . Fabricators . | . . . Repair Stations . | . . . Recycling Units . | . . . Scanalyzers . | . . . Garrison Access . | . . . Data Cores Recovered . | . . . Used . | . . . Hacking Detections 3 | . 1 2 Full Trace Events 1 | . . 1 Feedback Events . | . . . Feedback Blocked . | . . . Robot Schematics Acquired . | . . . Robots Built . | . . . Authchips . | . . . Time . | . . . Total Robot Build Rating . | . . . Part Schematics Acquired 1 | . . 1 Parts Built . | . . . Authchips . | . . . Time . | . . . Total Part Build Rating . | . . . Part Studies Acquired 2 | . . 2 Parts Repaired . | . . . Time . | . . . Parts Recycled 1 | . . 1 Recycled Matter 316 | . . 316 Retrieved Matter . | . . . Retrieved Components . | . . . Parts Scanalyzed 1 | . . 1 Part Schematics Acquired 1 | . . 1 Parts Damaged . | . . . Bothacking | -11 -10 -9 ------------ Run | Yrd Mat Mat Used RIF Installer . | . . . Robots Hacked . | . . . Non-combat . | . . . Combat . | . . . Robot Hacks Applied . | . . . Relay Couplers Released . | . . . Fabnet Peak Effective % . | . . . Robots Rewired . | . . . Allies Hacked . | . . . Hacks Repelled . | . . . Allies | -11 -10 -9 -------- Run | Yrd Mat Mat Total Allies . | . . . Largest Group . | . . . Highest-Rated Group . | . . . Highest-Rated Ally . | . . . Total Orders . | . . . Ally Attacks . | . . . Total Damage . | . . . Kills . | . . . Allies Corrupted . | . . . Allies Melted . | . . . Intel | -11 -10 -9 ------- Run | Yrd Mat Mat Active Infowar (turns) . | . . . Robot Analysis Total . | . . . Derelict Logs Recovered . | . . . Drone Launches . | . . . Drone Recoveries . | . . . Exploration | -11 -10 -9 ------------- Run | Yrd Mat Mat Turns Passed 1234 | 143 703 388 Spaces Moved 806 | 100 470 236 Core 26 | 21 . 5 Treads . | . . . Legs 780 | 79 470 231 Wheels . | . . . Hover . | . . . Flight . | . . . Fastest Speed 50 | 50 120 100 Average Speed 114 | 105 120 106 Slowest Speed 120 | 120 120 120 Overloaded Moves . | . . . Propulsion Burnouts . | . . . Robots Hopped . | . . . Potential Cave-ins 1 | . . 1 Cave-ins Triggered 1 | . . 1 Exploration Rate (%) 32 | 9 70 18 Regions Visited 2 Branch Regions . Pre-discovered Areas . | . . . Known Exits Taken . | . . . Unknown Exits Taken 2 | 1 1 . Scrap Searched . | . . . Spaces Dug . | . . . Terrain Destroyed 61 | . 7 54 Melee . | . . . Projectile . | . . . AOE 61 | . 7 54 Terrain Rammed . | . . . Walls Destroyed . | . . . Machines Disabled . | . . . Actions | -11 -10 -9 --------- Run | Yrd Mat Mat Total 940 | 118 528 294 Wait 1 | . . 1 Move 803 | 99 469 235 Hop . | . . . Pick Up 7 | 4 2 1 Fast Attach 14 | 6 2 6 Attach 4 | . 1 3 Detach . | . . . Swap 16 | 1 9 6 Drop 5 | . 5 . Fire 89 | 8 40 41 Melee . | . . . Ram . | . . . Kick . | . . . Crush . | . . . Escape Stasis 1 | . . 1 Rewire . | . . . Trap . | . . . Miscellaneous . | . . . Route ------- -11/Scrapyard -10/Materials (discovered 3 exits: *Mat x2 / [*Min]) -9/Materials History --------- Turn | Location | Event 2 | -11/Scrapyard | Met Revision 17 92 | -11/Scrapyard | Discovered new exit (range 8) 144 | -11/Scrapyard | Entered Materials 335 | -10/Materials | Build established: Mutant 414 | -10/Materials | Core integrity fell below 50% 467 | -10/Materials | Discovered new exit (range 16) 522 | -10/Materials | Discovered new exit (range 9) 631 | -10/Materials | Discovered new exit (range 4) 847 | -10/Materials | Entered another Materials area 847 | -9/Materials | Evolved 2 slots: Propulsion x2 999 | -9/Materials | Crushed by falling debris 1000 | -9/Materials | System corruption reached 10% 1030 | -9/Materials | Lost 3 parts (1p2u) 1068 | -9/Materials | Core integrity fell below 50% 1103 | -9/Materials | Core integrity fell below 20% 1122 | -9/Materials | Lost 4 parts (1p2n1w) 1235 | -9/Materials | Destroyed by G-47 Trooper with Particle Gun Last Messages --------------- 01164_ System corrupted: Substantial component data lost. 01165_ U-05 Engineer builds a Wall. 01173_ U-05 Engineer lays Concrete. 01188_ K-01 Serf cleans the Terminal. 01191_ C-30 ARC bursts open, deploying its payload. 01191_ G-47 Trooper unfolds itself. 01191_ G-34 Mercenary unfolds itself. 01192_ K-01 Serf collects debris. 01208_ NXT#=G%%Z:|NK9W%=F>|KGU>E5 01223_ Lgt. Ion Engine destroyed. 01229_ S-10 Pest suffers critical hit (Destroy). 01229_ Destroyed Lgt. Ion Engine. 01229_ S-10 Pest destroyed. 01229_ Destroyed Flight Unit. 01229_ Grenade Launcher destroyed. 01229_ Destroyed Grenade Launcher. 01235_ H 3WGK&&QLVMYCUCBKBFOG9XBLY [Achievement: First Step to Greatness] Map ----- +----------------------------------------------------+ | ?# #????????????# #??????????? | | ?# ############## #??????????? | | ## ## ? # #??????????? | | ## """ """ #####+####??????????? | | # """ """ ## #??????????? | | + """ """ ## #??????????? | | # ## #??????????? | | # ## ###########????? | | " %# ## # #????? | | " = ########### # # "" #????? | | " ############## + """ #????? | | %% % # """ S" #????? | | % # """ #????? | | # # """ #????? | | ################## # #????? | | ########## ! # # #????? | | ?????????# = # ###########????? | | ???########[ * + #??????????????? | | ???# # "Y" # #??????????????? | | ???# """ """ # ########???????? | | ???# """ # # # #???????? | | ???# """ ##+##### # #???????? | | ???# ## #???# # ##??????? | | ???# ## #???# u # #??????? | | #######+#### ##### gg #??????? | | # @%s #??????? | | #### s #??????? | | ????? | | ################## ###### Y ??? | | ?????????????????# #????# # ? | | ?????????????????# #????# # # | | ?????????????????# #????# #? # | | ?????????????????# #????# #?? # | | ?????????????????# ?????# #??? # | | ?????????????????# ?????? #???? # | | ?????????????????# ?????? #?????## | | ?????????????????# ?????? #??????? | | ?????????????????# ?????? #??????? | | ?????????????????# ?????? ???????? | | ?????????????????? ?????? ???????? | | ??????????????????????????? ???????? | | ????????????????????????????????????? | | ????????????????????????????????????? | | ????????????????????????????????????? | | ????????????????????????????????????? | | ????????????????????????????????????? | | ????????????????????????????????????? | | ????????????????????????????????????? | | ????????????????????????????????????? | | ????????????????????????????????????? | +----------------------------------------------------+ Best States ------------- Heat Dissipation 49 Energy Generation 10 Energy Capacity 250 Matter Stores 300 Matter Capacity 300 Sight Range 16 Terrain Scan Density 10 Propulsion Shielding 33 Evasion (%) 55 Item Schematics ----------------- Huge Storage Unit | -9/Materials | Scanalyzed Robot Schematics ------------------ None Fabricated ------------ Nothing Repaired ---------- Nothing Studied --------- Aluminum Leg | -9/Materials | Hacked Lgt. Assault Rifle | -9/Materials | Hacked Alien Tech Used ----------------- None Achievements -------------- Crack Shot DATA ERROR: Steam Global Achievement% First Step to Greatness It's Just You Item+ Loot Pinata Unlikely Earthworm Challenges ------------ None Game ------ Seed FactoryTeslaActivator Manual? 0 Play Time 00:24:35 Cumulative 0.3 hours Start 2026.07.17 @ 20:02:22 End 2026.07.17 @ 20:49:55 Sessions 2 Manual Loads 0 Difficulty Rogue Special Mode None Game No. 2 Rogue 2 Adventurer 0 Explorer 0 Win Type - Total 0 Types 0/0/0/0/0/0/0/0/0/0 Lore% 1 Gallery% 3 Achievement% 6 Wizard Run 0 Options --------- Layout 1 ASCII 0 Keyboard 0 Movement Arrows Keybinds 0 Fullscreen 1 Font 24/Smallcaps Map View 50x35 Zoom Use 0% Tactical HUD 1 Map Filters NONE Filters NONE Steam 1 RUN: a4722f74-3470-4320-ad80-5bf0020724cf